Cogmind - Beta 13 @@@ ROGUE MODE // 2024.05.19 @ 20:41:43 Player: skelll Result: Destroyed by L-41 Fighter with Axe Performance ------------- Evolutions (0) 0 Regions Visited (4) 800 Robots Destroyed (15) 75 Value Destroyed (485) 485 Prototype IDs (0) 0 Alien Tech Used (0) 0 Bonus (35) 35 TOTAL SCORE: 1395 Bonus ------- Follower Combat Kills 35 Cogmind --------- Core Integrity 0/250 Matter 120/300 Energy 65/100 System Corruption 0% Temperature Cool (24) Movement Rolling (115) Ox1 Location -7/Recycling Parts ------- > --- POWER (1) -------- (None) > --- PROPULSION (2) --- Compact Wheel Compact Wheel > --- UTILITY (2) ------ High-capacity Storage Unit > --- WEAPON (2) ------- Battle Rifle > --- INVENTORY (20) --- Compact Wheel Scrap Engine Makeshift Kinetic Plating Scrap Shield Subdweller Machine Gun Battle Cannon Grenade Launcher Rocket Launcher Subdweller Shrapnel Launcher Datajack Datajack Datajack Mining Laser Flamer Scrap Shield Fragment (46) Scrap Shield Fragment (46) Peak State ------------ > --- POWER ------------ Light Ion Engine > --- PROPULSION ------- Compact Wheel Compact Wheel > --- UTILITY ---------- High-capacity Storage Unit Small Matter Pod > --- WEAPON ----------- Battle Rifle Subdweller Shrapnel Launcher > --- INVENTORY -------- Compact Wheel Compact Wheel Scrap Engine Makeshift Kinetic Plating Scrap Shield Battle Rifle Subdweller Machine Gun Battle Cannon Grenade Launcher Rocket Launcher Subdweller Shrapnel Launcher Datajack Datajack Datajack Mining Laser Flamer Scrap Shield Fragment Scrap Shield Fragment [Rating: 13] Favorites ----------- Power Ion Engine Engine Ion Engine Propulsion Compact Wheel Treads Light Treads Wheel Compact Wheel Utility Small Matter Pod Storage Small Matter Pod Weapon EM Pulse Gun Energy Gun EM Pulse Gun Ballistic Gun Light Assault Rifle Launcher Subdweller Shrapnel Launcher Build | -11 -10 -10 -10 -7 ------- Run | Yrd Mat Min Sub Rec Slots Evolved . | . . . . . Power . | . . . . . Propulsion . | . . . . . Utility . | . . . . . Weapon . | . . . . . Parts Attached 20 | 5 7 3 3 2 Power 3 | 1 1 . 1 . Engine 3 | 1 1 . 1 . Core . | . . . . . Reactor . | . . . . . Propulsion 6 | 1 4 . . 1 Treads 2 | . 2 . . . Leg . | . . . . . Wheel 4 | 1 2 . . 1 Hover . | . . . . . Flight . | . . . . . Utility 5 | 1 1 3 . . Device . | . . . . . Storage 5 | 1 1 3 . . Processor . | . . . . . Hackware . | . . . . . Protection . | . . . . . Artifact . | . . . . . Weapon 6 | 2 1 . 2 1 Energy Gun 1 | 1 . . . . Energy Cannon . | . . . . . Ballistic Gun 4 | 1 1 . 1 1 Ballistic Cannon . | . . . . . Launcher 1 | . . . 1 . Special Weapon . | . . . . . Impact Weapon . | . . . . . Slashing Weapon . | . . . . . Piercing Weapon . | . . . . . Special Melee Weapon . | . . . . . Unidentified Prototypes . | . . . . . Parts Lost 7 | . 2 . . 5 Power 2 | . 1 . . 1 Propulsion 2 | . 1 . . 1 Utility 1 | . . . . 1 Weapon 2 | . . . . 2 Highest Loss Streak 5 | . 1 . . 5 To Critical Strikes . | . . . . . Average Slot Usage (%) 96 | . 80 98 99 89 Engine 13 | . 13 14 14 10 Treads 1 | . 12 . . . Wheel 25 | . 10 28 28 24 Storage 25 | . 14 26 28 24 Energy Gun 8 | . 14 14 5 . Ballistic Gun 14 | . 14 14 14 14 Launcher 5 | . . . 8 14 Naked Turns . | . . . . . Heaviest Build 56 | 12 19 49 56 54 Greatest Support 40 | 10 40 32 32 32 Greatest Overweight (x) 1 | 1 1 1 1 1 Average Overweight (x) . | . . . 1 1 Largest Inventory Capacity 20 | 8 10 20 20 20 Average Capacity 17 | 7 9 18 20 20 Most Carried 20 | 5 10 12 20 20 Average Carried 14 | 2 6 10 17 19 Final Capacity 20 | 8 10 20 20 20 Final Carried 20 | 5 10 12 20 18 Class Distribution -------------------- 100% | Mutant Dominant Class ---------------- Mutant | -10/Materials Mutant | -10/Mines Mutant | -10/Subcaves Mutant | -7/Recycling Resources | -11 -10 -10 -10 -7 ----------- Run | Yrd Mat Min Sub Rec Matter Collected 580 | 184 146 83 167 . Remotely . | . . . . . Salvage Created 544 | . 134 50 238 122 Parts 24 | . 6 1 15 2 Haulers Intercepted . | . . . . . Recyclers Shooed . | . . . . . Parts Field Recycled . | . . . . . Retrieved Matter . | . . . . . Parts Self-Destructed 7 | . . . 7 . Prevented . | . . . . . Kills | -11 -10 -10 -10 -7 ------- Run | Yrd Mat Min Sub Rec Combat Hostiles Destroyed 13 | . 3 1 9 . Guns 8 | . 3 1 4 . AOE 5 | . . . 5 . Classes Destroyed 5 | . 1 . 4 . Turret 2 | . . . 2 . Swarmer 4 | . . . 4 . Grunt 6 | . 3 1 2 . Sentry 1 | . . . 1 . Subdweller 2 | . . . 2 . Best Kill Streak 6 | . 2 1 6 . Combat Bots Only 4 | . 2 1 4 . Max Kills in Single Turn 3 | . 1 1 3 . Gunslinging . | . . . . . Exploded 2 | . . . 2 . Melee . | . . . . . Uniques/NPCs Destroyed . | . . . . . Combat | -11 -10 -10 -10 -7 -------- Run | Yrd Mat Min Sub Rec Hostile Shots Fired 125 | . 18 2 49 56 Missed 56 | . 5 . 25 26 Damage Taken 847 | . 268 42 143 394 Core 276 | . 68 . 46 162 Absorbed by Shields . | . . . . . Core Remaining (%) 100 | 100 . . . . Volleys Fired 35 | . 10 3 16 6 Largest 2 | . 2 2 2 2 Hottest 65 | . 60 60 65 65 Shots Fired 68 | . 20 6 30 12 Gun 55 | . 20 6 23 6 Cannon . | . . . . . Launcher 13 | . . . 7 6 Special . | . . . . . Kinetic 48 | . 10 3 23 12 Thermal . | . . . . . Explosive . | . . . . . Electromagnetic 20 | . 10 3 7 . Robot Hit Streak 11 | . 10 4 11 2 Robot Miss Streak 1 | . 1 1 1 1 Penetration Max . | . . . . . Secondary Targets . | . . . . . Shots Hit Robots 39 | . 16 4 14 5 Core Hits 34 | . 8 2 15 9 Critical Kills . | . . . . . Critical Parts Destroyed . | . . . . . Critical Strikes . | . . . . . Melee Attacks . | . . . . . Impact . | . . . . . Slashing . | . . . . . Piercing . | . . . . . Sneak Attacks . | . . . . . Combat Hostiles . | . . . . . Follow-up Attacks . | . . . . . Damage Inflicted 1624 | . 391 53 718 462 Guns 495 | . 206 53 181 55 Cannons . | . . . . . Explosions 1129 | . 185 . 537 407 Melee . | . . . . . Ramming . | . . . . . Kinetic 1194 | . 82 10 640 462 Thermal 114 | . 114 . . . Explosive . | . . . . . Electromagnetic 316 | . 195 43 78 . Impact . | . . . . . Slashing . | . . . . . Piercing . | . . . . . Highest Corruption . | . . . . . Average Corruption . | . . . . . Corruption Purged . | . . . . . Corruption Blocked . | . . . . . Overload Shots . | . . . . . Overflow Damage 110 | . 1 . 50 59 Projectiles . | . . . . . Explosions 110 | . 1 . 50 59 Melee . | . . . . . Knockbacks . | . . . . . Impact . | . . . . . Kinetic . | . . . . . Secondary . | . . . . . Self-Inflicted Damage 211 | . 112 . . 99 Shots 7 | . 4 . . 3 Rammed . | . . . . . Targets Rammed . | . . . . . Kicked . | . . . . . Crushed . | . . . . . Highest Temperature 56 | . 36 41 1 56 Average Temperature 24 | . 18 20 1 34 Received Heat Transfer 222 | . 90 21 39 72 Siege Activations . | . . . . . Robots Corrupted . | . . . . . Combat Hostiles . | . . . . . Parts Fried . | . . . . . Impact Corruptions . | . . . . . Robots Melted . | . . . . . Combat Hostiles . | . . . . . Parts Melted . | . . . . . Heat Transferred 150 | . 150 . . . Parts Sabotaged . | . . . . . Parts Stolen . | . . . . . Parts Stripped . | . . . . . Power Chain Reactions 2 | . 2 . . . Alert | -11 -10 -10 -10 -7 ------- Run | Yrd Mat Min Sub Rec Peak Influence 242 | . 145 109 . 242 Initial 199 | . . 56 . 199 Average 72 | . 86 62 . 209 Maximum Alert Level 1 | . . . . 1 Low Security (%) 98 | 100 100 100 . 55 Level 1 1 | . . . . 44 Level 2 . | . . . . . Level 3 . | . . . . . Level 4 . | . . . . . Level 5 . | . . . . . High Security . | . . . . . Max Security . | . . . . . Squads Dispatched 1 | . 1 . . . Investigation . | . . . . . Extermination . | . . . . . Reinforcement 1 | . 1 . . . Assault . | . . . . . Garrison . | . . . . . Intercept . | . . . . . Searches Triggered . | . . . . . Construction Impeded . | . . . . . Haulers Reinforced . | . . . . . Active Scanning Responses . | . . . . . Cargo Convoy Interrupts . | . . . . . Stealth | -11 -10 -10 -10 -7 --------- Run | Yrd Mat Min Sub Rec Distress Signals . | . . . . . Communications Jammed . | . . . . . Distress Signals . | . . . . . Times Spotted 39 | . 6 2 29 2 Peak Tracking Total 6 | . 3 2 6 2 Tactical Retreats 1 | . . . 1 . Traps | -11 -10 -10 -10 -7 ------- Run | Yrd Mat Min Sub Rec Traps Triggered . | . . . . . Indirectly . | . . . . . Trap Hack Attempts . | . . . . . Triggered . | . . . . . Disarmed . | . . . . . Reprogrammed . | . . . . . Reused . | . . . . . Traps Extracted . | . . . . . Installed . | . . . . . Triggered . | . . . . . Most Traps Carried 1 | . . . 1 1 Machines | -11 -10 -10 -10 -7 ---------- Run | Yrd Mat Min Sub Rec Machines Disabled 6 | . 3 . 3 . Max in Single Turn 3 | . 3 . 3 . Machines Repaired . | . . . . . Machines Dismantled . | . . . . . Machines Sabotaged . | . . . . . Overloaded Fab Kills . | . . . . . Hacking | -11 -10 -10 -10 -7 --------- Run | Yrd Mat Min Sub Rec Machines Accessed 5 | . 3 1 1 . Terminals 4 | . 3 1 . . Fabricators . | . . . . . Repair Stations . | . . . . . Recycling Units . | . . . . . Scanalyzers . | . . . . . Garrison Access . | . . . . . Total Hacks 10 | . 8 1 1 . Successful 3 | . 1 1 1 . Failed 7 | . 7 . . . Catastrophic . | . . . . . Database Lockouts . | . . . . . Manual . | . . . . . Terminals 9 | . 8 1 . . Fabricators . | . . . . . Repair Stations . | . . . . . Recycling Units . | . . . . . Scanalyzers . | . . . . . Garrison Access . | . . . . . Terminal Hacks 3 | . 1 1 1 . Record 3 | . 1 1 1 . Fabricator Hacks . | . . . . . Repair Station Hacks . | . . . . . Recycling Unit Hacks . | . . . . . Scanalyzer . | . . . . . Garrison Access Hacks . | . . . . . Unauthorized Hacks . | . . . . . Terminals . | . . . . . Fabricators . | . . . . . Repair Stations . | . . . . . Recycling Units . | . . . . . Scanalyzers . | . . . . . Garrison Access . | . . . . . Data Cores Recovered . | . . . . . Used . | . . . . . Hacking Detections 4 | . 3 1 . . Full Trace Events 1 | . 1 . . . Feedback Events . | . . . . . Feedback Blocked . | . . . . . Robot Schematics Acquired . | . . . . . Robots Built . | . . . . . Authchips . | . . . . . Time . | . . . . . Total Robot Build Rating . | . . . . . Part Schematics Acquired . | . . . . . Parts Built . | . . . . . Authchips . | . . . . . Time . | . . . . . Total Part Build Rating . | . . . . . Parts Repaired . | . . . . . Time . | . . . . . Parts Recycled . | . . . . . Recycled Matter . | . . . . . Retrieved Matter . | . . . . . Retrieved Components . | . . . . . Parts Scanalyzed . | . . . . . Part Schematics Acquired . | . . . . . Parts Damaged . | . . . . . Bothacking | -11 -10 -10 -10 -7 ------------ Run | Yrd Mat Min Sub Rec Used RIF Installer . | . . . . . Robots Hacked . | . . . . . Non-combat . | . . . . . Combat . | . . . . . Robot Hacks Applied . | . . . . . Relay Couplers Released . | . . . . . Fabnet Peak Effective % . | . . . . . Robots Rewired . | . . . . . Allies Hacked . | . . . . . Hacks Repelled . | . . . . . Allies | -11 -10 -10 -10 -7 -------- Run | Yrd Mat Min Sub Rec Total Allies 1 | . . 1 . . Largest Group 1 | . . 1 . . Highest-Rated Group 31 | . . 31 . . Highest-Rated Ally 31 | . . 31 . . Total Orders . | . . . . . Ally Attacks 5 | . . 5 . . Total Damage 104 | . . 104 . . Kills 1 | . . 1 . . Allies Corrupted . | . . . . . Allies Melted . | . . . . . Intel | -11 -10 -10 -10 -7 ------- Run | Yrd Mat Min Sub Rec Robot Analysis Total . | . . . . . Derelict Logs Recovered 3 | . . 2 1 . Drone Launches . | . . . . . Drone Recoveries . | . . . . . Exploration | -11 -10 -10 -10 -7 ------------- Run | Yrd Mat Min Sub Rec Turns Passed 2295 | 46 308 655 1243 43 Spaces Moved 1808 | 38 180 561 1017 12 Core 1 | 1 . . . . Treads 60 | . 60 . . . Legs . | . . . . . Wheels 1747 | 37 120 561 1017 12 Hover . | . . . . . Flight . | . . . . . Fastest Speed 50 | 50 95 100 115 115 Average Speed 114 | 89 118 112 115 115 Slowest Speed 160 | 95 160 115 115 115 Overloaded Moves . | . . . . . Propulsion Burnouts . | . . . . . Robots Hopped . | . . . . . Cave-ins Triggered . | . . . . . Exploration Rate (%) 43 | 4 44 97 64 7 Regions Visited 4 Branch Regions 3 Pre-discovered Areas . | . . . . . Known Exits Taken . | . . . . . Unknown Exits Taken 4 | 1 1 1 1 . Scrap Searched 6 | . . 1 5 . Spaces Dug . | . . . . . Terrain Destroyed 141 | . 5 . 82 54 Melee . | . . . . . Projectile . | . . . . . AOE 141 | . 5 . 82 54 Terrain Rammed . | . . . . . Walls Destroyed . | . . . . . Machines Disabled . | . . . . . Actions | -11 -10 -10 -10 -7 --------- Run | Yrd Mat Min Sub Rec Total 1979 | 47 257 577 1067 31 Wait 70 | . 45 7 10 8 Move 1804 | 37 179 560 1016 12 Hop . | . . . . . Pick Up 30 | 5 9 2 13 1 Fast Attach 9 | 5 2 1 1 . Attach 6 | . 4 . . 2 Detach 4 | . 3 . 1 . Swap 5 | . 1 2 2 . Drop 16 | . 4 2 8 2 Fire 35 | . 10 3 16 6 Melee . | . . . . . Ram . | . . . . . Kick . | . . . . . Crush . | . . . . . Escape Stasis . | . . . . . Rewire . | . . . . . Trap . | . . . . . Miscellaneous . | . . . . . Route ------- -11/Scrapyard -10/Materials (discovered 2 exits: *Min x2) -10/Mines (discovered 3 exits: [*Mat x2] / *Sub) -10/Subcaves (discovered 2 exits: [*Mat] / [*Rec]) -7/Recycling History --------- Turn | Location | Event 33 | -11/Scrapyard | Discovered new exit (range 16) 47 | -11/Scrapyard | Entered Materials 150 | -10/Materials | Discovered new exit (range 16) 314 | -10/Materials | Build established: Mutant 320 | -10/Materials | Discovered new exit (range 11) 355 | -10/Materials | Entered Mines 358 | -10/Mines | Received a Mining Laser from a helpful Derelict 429 | -10/Mines | Discovered new exit (range 8) 460 | -10/Mines | Learned Materials security intel 608 | -10/Mines | Discovered new exit (range 11) 859 | -10/Mines | Received a Rocket Launcher from a helpful Derelict 1004 | -10/Mines | Discovered new exit (range 7) 1010 | -10/Mines | Entered Subcaves 1172 | -10/Subcaves | Visited Clippyterm 1298 | -10/Subcaves | Shifting Twisted Machinery released Battle Cannon 1308 | -10/Subcaves | A swath of the cavern ceiling suddenly collapsed 1389 | -10/Subcaves | Discovered new exit (range 13) 1435 | -10/Subcaves | Learned 2 Materials zone layouts 1467 | -10/Subcaves | Shifting Twisted Machinery released Humpback 1470 | -10/Subcaves | Shifting Twisted Machinery released Sub. Shrapnel Launcher 1960 | -10/Subcaves | Shifting Twisted Machinery released Scrap Shield 1967 | -10/Subcaves | Shifting Twisted Machinery released Sub. Beam Cannon 2049 | -10/Subcaves | A swath of the cavern ceiling suddenly collapsed 2226 | -10/Subcaves | Discovered new exit (range 14) 2253 | -10/Subcaves | Entered Recycling 2257 | -7/Recycling | Found Scrap Engine 2287 | -7/Recycling | Core integrity fell below 50% 2295 | -7/Recycling | Core integrity fell below 20% 2296 | -7/Recycling | Destroyed by L-41 Fighter with Axe Last Messages --------------- 02247_ Lgt. Assault Rifle fries itself beyond repair. 02252_ Acquired 28 matter. A mysterious object appears at your location! LOCATION=UNKNOWN GOAL=ESCAPE 02256_ Dropped Shrapnel Trap. 02256_ Dropped Med. Storage Unit. 02257_ Acquired Scrap Engine. 02263_ Y-54 Guardian springs to life. 02280_ R-06 Scavenger destroyed. 02288_ Lgt. Ion Engine destroyed. 02288_ Sml. Matter Pod destroyed. 02288_ Com. Wheel destroyed. 02292_ Sub. Shrapnel Launcher destroyed. 02292_ Destroyed Sub. Shrapnel Launcher. 02292_ Battle Rifle destroyed. 02292_ Destroyed Battle Rifle. 02296_ R-06 Scavenger collects Med. Storage Unit. Map ----- +----------------------------------------------------+ | | | | | | | | | | | | | | | | | | | | | | | | | | | | | | | | | | | | | | | ????????????????????????????????? | | ????????????????????????????????? | | ??????????????????????######????? | | ???????????????????#### r ####?? | | ?????????????????###; % #?? | | ?????????????????# = #?? | | ???????????????##; @ #?? | | ???????????????#// r l #?? | | ???????????????# / #?? | | ???????????????#// Y #?? | | ?????????????#;;; #?? | | ?????????? #?? | | ?????? #?? | | ?????? %;; ;####?? | | ????? ##### #; ;####????? | | ???????????#?## ;;????????? | | ??????????????# ????????? | | ??????????????# ????????? | | ???????????????? ????????? | | ?????????????????# ri????????? | | ?????????????????# %?????????? | | ?????????????????# #??????????? | | ?????????????????# #??????????? | | ?????????????????# ???????????? | | ?????????????????# ???????????? | | ?????????????????? ???????????? | | ????????????????????????????????? | | ????????????????????????????????? | | ????????????????????????????????? | | ????????????????????????????????? | | ????????????????????????????????? | +----------------------------------------------------+ Best States ------------- Heat Dissipation 25 Energy Generation 10 Energy Capacity 250 Matter Stores 350 Matter Capacity 350 Sight Range 16 Terrain Scan Density 10 Evasion (%) 44 Recoil Reduction 2 Item Schematics ----------------- None Robot Schematics ------------------ None Fabricated ------------ Nothing Alien Tech Used ----------------- None Achievements -------------- None Challenges ------------ None Game ------ Seed ArchitectSchematicWarhead Manual? 0 Play Time 00:27:28 Cumulative 10.6 hours Start 2024.05.19 @ 20:13:39 End 2024.05.19 @ 20:41:43 Sessions 1 Manual Loads 0 Difficulty Rogue Special Mode None Game No. 18 Rogue 18 Adventurer 0 Explorer 0 Win Type - Total 0 Types 0/0/0/0/0/0/0/0/0 Lore% 14 Gallery% 15 Achievement% 10 Wizard Run 0 Options --------- Layout 1 ASCII 0 Keyboard 1 Movement Arrows Keybinds 0 Fullscreen 2 Font 24/Smallcaps Map View 50x35 Zoom Use 0% Tactical HUD 1 Map Filters NONE Filters NONE Steam 1 RUN: da10732d-3690-40dc-8acc-a16b8f33cf9c